bitfinex/quotes_BTCUSD_20220120
["timestamp","ask_amount","ask_price","bid_price","bid_amount"]
[1642695582039,0.27459449,43225.0,43222.0,6.876e-05]
[1642695582236,0.30833791,43227.0,43220.0,0.00010314]
[1642695582437,0.30833791,43227.0,43222.0,0.00106717]
[1642695583435,0.30833791,43227.0,43218.0,0.00013752]
[1642695583638,0.01698863,43228.0,43222.0,0.00106715]
[1642695583839,0.3451,43232.0,43222.0,0.00106715]
[1642695583840,0.2991,43232.0,43222.0,0.00106715]
[1642695584045,0.0010712,43236.0,43222.0,0.06459915]
[1642695584242,8.595e-05,43231.0,43224.0,0.00543187]
[1642695584439,0.00428463,43238.0,43226.0,0.10153723]
[1642695584440,0.00355341,43238.0,43226.0,0.10153723]
[1642695584641,0.31074542,43238.0,43227.0,0.31488274]
[1642695584839,6.876e-05,43235.0,43227.0,0.3649515]
[1642695585038,6.876e-05,43235.0,43227.0,0.19158127]
[1642695585282,6.876e-05,43235.0,43230.0,0.09762103]
[1642695585481,6.876e-05,43235.0,43232.0,0.10418944]
[1642695585684,6.876e-05,43235.0,43233.0,0.09694259]
[1642695585880,6.876e-05,43235.0,43231.0,0.05]
[1642695586080,6.876e-05,43235.0,43229.0,0.31191726]
[1642695586081,6.876e-05,43235.0,43230.0,0.09305399]
[1642695586381,6.876e-05,43235.0,43231.0,0.05]
[1642695586583,6.876e-05,43235.0,43232.0,0.00707463]
[1642695586780,6.876e-05,43235.0,43233.0,0.046]
[1642695586981,6.876e-05,43235.0,43234.0,0.046]
[1642695587779,0.2779179,43237.0,43234.0,0.046]
[1642695590023,0.2779179,43237.0,43232.0,0.00118932]
[1642695590024,0.69359121,43236.0,43232.0,0.00118932]
[1642695590223,0.20063216,43234.0,43232.0,0.00118932]
[1642695590624,0.20063216,43234.0,43227.0,6.876e-05]
[1642695590826,0.26573459,43233.0,43232.0,0.00118931]
[1642695591124,0.86573459,43233.0,43232.0,0.00118931]
[1642695591826,0.88148459,43233.0,43225.0,0.0001719]
[1642695592023,0.6,43233.0,43230.0,0.00118933]
[1642695592425,0.6,43233.0,43231.0,6.876e-05]
[1642695592868,0.2936679,43237.0,43231.0,6.876e-05]
[1642695592869,0.2779179,43237.0,43231.0,6.876e-05]
[1642695593077,0.32078929,43236.0,43231.0,6.876e-05]
[1642695593269,0.2779179,43237.0,43231.0,6.876e-05]
[1642695593468,0.2779179,43237.0,43230.0,0.00118933]
[1642695593670,0.00095296,43240.0,43231.0,6.876e-05]
[1642695593870,0.00095296,43240.0,43232.0,0.046]
[1642695594070,6.876e-05,43239.0,43232.0,0.046]
[1642695594474,6.876e-05,43239.0,43232.0,0.04718932]
[1642695594671,0.34276499,43238.0,43232.0,0.14953908]
[1642695594871,0.34276499,43238.0,43232.0,0.04718932]
[1642695595471,0.34276499,43238.0,43232.0,0.046]
[1642695595670,0.34276499,43238.0,43232.0,0.04718932]
[1642695596519,0.34276499,43238.0,43232.0,0.14419435]
[1642695596721,6.876e-05,43239.0,43232.0,0.14300503]
[1642695596920,6.876e-05,43239.0,43232.0,0.14419435]
[1642695597124,0.17215975,43241.0,43232.0,0.04718932]
[1642695597324,0.33154279,43245.0,43233.0,0.11120689]
[1642695597622,0.33154279,43245.0,43234.0,0.05798644]
[1642695597821,0.33490136,43243.0,43234.0,0.05798644]
[1642695598022,0.33490136,43243.0,43235.0,0.04606876]
[1642695598623,0.31131941,43242.0,43235.0,0.04606876]
[1642695598825,0.64249783,43242.0,43235.0,0.04606876]
[1642695599325,0.64303012,43242.0,43235.0,0.04606876]
[1642695599524,0.75878012,43242.0,43235.0,0.04606876]
[1642695600288,0.75878012,43242.0,43235.0,6.876e-05]
[1642695600289,0.05913524,43241.0,43235.0,6.876e-05]
[1642695600490,0.00128024,43241.0,43236.0,0.00118924]
[1642695601188,0.01669462,43242.0,43236.0,0.00118924]
[1642695601189,0.00094462,43242.0,43236.0,0.00118924]
[1642695601392,1.05611152,43248.0,43237.0,0.046]
[1642695601393,0.30325,43248.0,43237.0,0.046]
[1642695601587,0.00094462,43242.0,43238.0,0.00649865]
[1642695601788,0.00094462,43242.0,43239.0,0.046]
[1642695602590,0.30891204,43244.0,43239.0,0.046]
[1642695602988,0.00101344,43243.0,43239.0,0.046]
[1642695603389,0.93086592,43240.0,43239.0,0.046]
[1642695603590,0.97600101,43237.0,43236.0,0.00118927]
[1642695603894,1.69341119,43237.0,43234.0,8.595e-05]
[1642695604122,0.377457,43236.0,43234.0,8.595e-05]
[1642695604324,0.377457,43236.0,43225.0,0.00024066]
[1642695604525,0.30559592,43233.0,43225.0,0.00024066]
[1642695604926,0.30559592,43233.0,43225.0,0.00776802]
[1642695605224,0.30559592,43233.0,43227.0,0.11162282]
[1642695605424,0.30559592,43233.0,43227.0,0.20368937]
[1642695605623,0.12600101,43237.0,43228.0,0.10018909]
[1642695605826,0.12600101,43237.0,43230.0,0.09645292]
[1642695606124,0.12600101,43237.0,43228.0,0.05018909]
[1642695606125,0.12600101,43237.0,43231.0,0.00013752]
[1642695606525,0.12600101,43237.0,43230.0,0.00118933]
[1642695606731,0.25474063,43233.0,43230.0,0.00118933]
[1642695606926,0.25474063,43233.0,43231.0,0.00013752]
[1642695607233,1.2592775,43232.0,43231.0,0.00013752]
[1642695607432,1.95309535,43232.0,43231.0,0.00013752]
[1642695607627,1.63801141,43232.0,43231.0,0.00013752]
[1642695607881,1.63801141,43232.0,43230.0,0.00118933]
[1642695607882,1.96590285,43232.0,43230.0,0.00118933]
[1642695608086,1.96590285,43232.0,43231.0,0.00013752]
[1642695608087,2.23075755,43232.0,43231.0,0.00013752]
[1642695608284,1.05,43230.0,43215.0,0.0033]
[1642695608485,0.00120032,43226.0,43215.0,0.0033]
[1642695608683,0.00120032,43226.0,43216.0,0.00025785]
[1642695609084,0.31374073,43222.0,43216.0,0.00025785]
[1642695609485,0.26881406,43217.0,43216.0,0.00025785]
[1642695610196,0.13579032,43225.0,43216.0,0.00025785]
[1642695610386,0.3537747,43229.0,43216.0,0.00025785]
[1642695610586,0.1,43228.0,43216.0,0.00025785]
[1642695610787,0.1,43228.0,43217.0,0.09410398]
[1642695610986,0.25520534,43220.0,43216.0,0.00025785]
[1642695611186,0.25520534,43220.0,43218.0,0.00022347]
[1642695611187,0.48267295,43220.0,43218.0,0.00022347]
[1642695611832,0.25520534,43220.0,43218.0,0.00022347]
[1642695613333,0.25520534,43220.0,43218.0,0.00702063]
[1642695613531,0.25520534,43220.0,43218.0,0.00022347]
[1642695613733,0.25520534,43220.0,43215.0,0.0533]
[1642695613734,0.25520534,43220.0,43219.0,0.00020628]
[1642695614133,0.25520534,43220.0,43218.0,0.0059268]
[1642695614334,0.25520534,43220.0,43219.0,0.00020628]
[1642695614534,0.57153656,43220.0,43219.0,0.00020628]
[1642695614737,0.57153656,43220.0,43215.0,0.0033]
[1642695614738,1.577457,43219.0,43215.0,0.0033]
[1642695614937,0.00127296,43216.0,43215.0,0.0033]
[1642695615134,0.37872996,43216.0,43215.0,0.0033]
[1642695615773,0.00127296,43216.0,43215.0,0.0033]
[1642695615976,0.00408711,43214.0,43211.0,0.0511]
[1642695616176,0.00408711,43214.0,43213.0,0.00349529]
[1642695616177,0.57509709,43214.0,43213.0,0.00349529]
[1642695616374,0.57509709,43214.0,43213.0,0.00347554]
[1642695616777,0.38154411,43214.0,43213.0,0.00347554]
[1642695616977,0.00408711,43214.0,43213.0,0.00347554]
[1642695617180,0.00408711,43214.0,43211.0,0.0011]
[1642695617181,0.85,43213.0,43211.0,0.0011]
[1642695617482,0.85,43213.0,43211.0,0.00239574]
[1642695617483,0.02685706,43212.0,43211.0,0.00239574]
[1642695617679,1.00431406,43212.0,43211.0,0.00228961]
[1642695617881,0.40431406,43212.0,43211.0,0.00228961]
[1642695618078,0.65354726,43212.0,43211.0,0.00228961]
[1642695618278,0.65354726,43212.0,43211.0,0.0011]
[1642695618279,0.91456203,43212.0,43211.0,0.0011]
[1642695618478,0.88900203,43212.0,43211.0,0.0011]
[1642695619133,0.51154503,43212.0,43211.0,0.0011]
[1642695619734,0.51088852,43212.0,43211.0,0.0011]
[1642695620934,0.88834552,43212.0,43211.0,0.0011]
[1642695621534,0.51088852,43212.0,43211.0,0.0011]
[1642695621735,0.51024797,43212.0,43211.0,0.0011]
[1642695623376,0.51024797,43212.0,43211.0,0.03675282]
[1642695623772,0.50603575,43212.0,43211.0,0.1211]
[1642695625178,0.24502098,43212.0,43211.0,0.1211]
[1642695626076,0.00408711,43214.0,43211.0,0.1211]
[1642695626281,0.00408711,43214.0,43212.0,0.09183548]
[1642695626525,0.00408711,43214.0,43213.0,0.05660652]
[1642695626726,0.00408711,43214.0,43213.0,0.05]
[1642695627124,0.00408711,43214.0,43212.0,0.00010613]
[1642695627125,0.38154411,43214.0,43212.0,0.00010613]
[1642695627328,0.16078769,43213.0,43211.0,0.00088775]
[1642695627526,0.377457,43212.0,43211.0,0.00078162]
[1642695628529,0.70508224,43212.0,43211.0,0.00078162]
[1642695629025,0.70634412,43212.0,43211.0,0.00078162]
[1642695630475,1.01302392,43212.0,43211.0,0.00078162]
[1642695630676,0.70634412,43212.0,43211.0,0.00078162]
[1642695634327,1.02088021,43212.0,43211.0,0.00078162]
[1642695634725,0.70634412,43212.0,43211.0,0.00078162]
[1642695635227,0.90436921,43212.0,43211.0,0.00078162]
[1642695635625,0.70508224,43212.0,43211.0,0.00078162]
[1642695636228,0.82087224,43212.0,43211.0,0.00078162]
[1642695636426,0.87876624,43212.0,43211.0,0.00078162]
[1642695636625,1.09124183,43212.0,43211.0,0.00078162]
[1642695637426,0.00133499,43210.0,43209.0,0.0022]
[1642695637626,0.00133499,43210.0,43209.0,0.00349578]
[1642695637627,0.37879199,43210.0,43209.0,0.00349578]
[1642695637886,0.37879199,43210.0,43209.0,0.00345841]
[1642695638789,0.37879199,43210.0,43209.0,0.00226876]
[1642695639389,0.00133499,43210.0,43209.0,0.00226876]
[1642695639889,0.00133499,43210.0,43209.0,0.00805667]
[1642695642527,0.00133499,43210.0,43209.0,0.75805667]
[1642695642928,0.00133499,43210.0,43209.0,0.75226876]
[1642695643130,0.00408711,43214.0,43210.0,1.2]
[1642695643327,0.00408711,43214.0,43211.0,0.046]
[1642695643528,0.00408711,43214.0,43212.0,0.2312706]
[1642695643727,0.00408711,43214.0,43213.0,0.846]
[1642695644127,0.00408711,43214.0,43213.0,0.146]
[1642695645682,0.00408711,43214.0,43213.0,0.88844968]
[1642695647985,0.00408711,43214.0,43213.0,0.596]
[1642695648587,0.00408711,43214.0,43213.0,1.296]
[1642695649428,0.00408711,43214.0,43213.0,0.60758]
[1642695649624,0.00408711,43214.0,43213.0,0.596]
[1642695650228,0.00408711,43214.0,43213.0,0.146]
[1642695651633,0.00408711,43214.0,43213.0,0.046]
[1642695651831,0.00408711,43214.0,43212.0,0.00010613]
[1642695652032,0.00408711,43214.0,43211.0,0.00110575]
[1642695652975,0.00408711,43214.0,43211.0,0.05898575]
[1642695653176,0.00408711,43214.0,43213.0,0.00610588]
[1642695653377,0.00408711,43214.0,43213.0,0.05]
[1642695654182,0.00073598,43214.0,43213.0,0.05]
[1642695654577,0.00073598,43214.0,43213.0,1.296]
[1642695654778,0.55658957,43225.0,43218.0,0.19714878]
[1642695654978,0.55658957,43226.0,43219.0,0.057861]
[1642695655177,0.0001891,43224.0,43219.0,0.057861]
[1642695655377,0.91196083,43228.0,43219.0,0.057861]
[1642695655378,0.55679586,43225.0,43219.0,0.057861]
[1642695655582,0.26260634,43228.0,43221.0,0.05786071]
[1642695655583,0.00017191,43223.0,43221.0,0.05786071]
[1642695655777,0.0001891,43224.0,43221.0,0.05786071]
[1642695655979,0.00015472,43222.0,43221.0,0.05786071]
[1642695656176,0.55658957,43226.0,43221.0,0.05786071]
[1642695656177,0.00017191,43223.0,43221.0,0.05786071]
[1642695656530,0.55658957,43226.0,43221.0,0.05786071]
[1642695656531,0.00015472,43222.0,43221.0,0.05786071]
[1642695656735,0.00015472,43222.0,43219.0,0.057861]
[1642695656930,0.00015472,43222.0,43220.0,0.00110748]
[1642695657130,0.00013753,43221.0,43220.0,0.11682236]
[1642695657332,0.00013753,43221.0,43220.0,0.96682236]
[1642695657534,0.00013753,43221.0,43220.0,1.01682236]
[1642695657735,0.00013753,43221.0,43220.0,1.0641193]
[1642695657934,0.00013753,43221.0,43220.0,1.29019754]
[1642695658132,0.00013753,43221.0,43220.0,1.06301182]
[1642695658334,0.00013753,43221.0,43220.0,1.41301182]
[1642695658931,0.00013753,43221.0,43220.0,1.06301182]
[1642695659337,0.00013753,43221.0,43220.0,0.09729694]
[1642695659532,0.00013753,43221.0,43220.0,0.04729694]
[1642695660377,0.00013753,43221.0,43220.0,0.49729694]
[1642695660577,0.00013753,43221.0,43220.0,0.046]
[1642695661379,0.00013753,43221.0,43220.0,0.596]
[1642695662377,0.00013753,43221.0,43220.0,1.53326832]
[1642695662582,0.55658957,43235.0,43221.0,1.2]
[1642695662781,0.78613914,43237.0,43221.0,1.2]
[1642695662782,0.69259058,43237.0,43228.0,0.057844]
[1642695662982,0.00015471,43230.0,43229.0,1.246]
[1642695663379,0.00015471,43230.0,43229.0,0.046]
[1642695663578,0.00015471,43230.0,43229.0,0.05292305]
[1642695663779,0.00015471,43230.0,43229.0,0.22589083]
[1642695664032,0.00015471,43230.0,43229.0,0.26953639]
[1642695664633,0.00015471,43230.0,43229.0,0.15384454]
[1642695665832,0.00015471,43230.0,43229.0,0.12844462]
[1642695667530,0.00015471,43230.0,43229.0,0.07844462]
[1642695668581,0.00015471,43230.0,43229.0,0.17844462]
[1642695670185,0.00015471,43230.0,43229.0,0.77844462]
[1642695670584,0.13673983,43237.0,43229.0,0.77972765]
[1642695670786,0.13673983,43237.0,43236.0,0.05784069]
[1642695670984,0.13673983,43237.0,43236.0,0.05]
[1642695671184,0.13600101,43237.0,43236.0,0.05]
[1642695671387,0.13673458,43237.0,43236.0,0.05]
[1642695672328,0.13600101,43237.0,43236.0,0.10784069]
[1642695673129,0.13600101,43237.0,43236.0,0.15784069]
[1642695673330,0.13600101,43237.0,43236.0,0.20384069]
[1642695674028,0.13600101,43237.0,43236.0,0.15784069]
[1642695674633,0.1,43248.0,43236.0,0.15911683]
[1642695674833,0.1,43248.0,43239.0,0.057834]
[1642695674834,0.00294033,43245.0,43239.0,0.057834]
[1642695675035,0.00294033,43245.0,43242.0,0.00126956]
[1642695675289,0.00294033,43245.0,43244.0,0.00127935]
[1642695675491,0.00294033,43245.0,43244.0,1.09727935]
[1642695675688,0.00319818,43245.0,43244.0,1.29089047]
[1642695675885,0.10989925,43250.0,43245.0,0.61564188]
[1642695676087,0.00073527,43247.0,43246.0,0.753821]
[1642695676283,0.00073527,43247.0,43246.0,0.146]
[1642695676488,0.31051094,43255.0,43246.0,0.146]
[1642695676489,0.0003,43260.0,43249.0,0.05782466]
[1642695676695,0.0003,43263.0,43259.0,0.00129063]
[1642695676887,0.0003,43263.0,43260.0,0.046]
[1642695677087,0.0003,43263.0,43260.0,0.1038]
[1642695677284,0.64465449,43273.0,43261.0,0.75]
[1642695677486,0.34443587,43273.0,43262.0,0.046]
[1642695677690,0.00037818,43271.0,43262.0,0.046]
[1642695678085,0.00036099,43270.0,43262.0,0.046]
[1642695678284,0.00036099,43270.0,43264.0,0.05780719]
[1642695678487,0.0010492,43269.0,43265.0,0.046]
[1642695678887,0.00032661,43268.0,43265.0,0.046]
[1642695679331,0.00030942,43267.0,43265.0,0.046]
[1642695679730,0.00029223,43266.0,43265.0,0.046]
[1642695681031,0.96509723,43260.0,43259.0,0.28130121]
[1642695681231,0.96509723,43260.0,43259.0,0.28098282]
[1642695681431,0.96528632,43260.0,43259.0,0.28098282]
[1642695681932,0.96528632,43260.0,43259.0,0.27402792]
[1642695683384,0.96528632,43260.0,43259.0,0.04689693]
[1642695683586,0.96528632,43260.0,43259.0,0.046]
[1642695684184,0.95872592,43260.0,43259.0,0.046]
[1642695684386,0.95872592,43260.0,43259.0,0.05192503]
[1642695684586,0.95872592,43260.0,43259.0,0.046]
[1642695684789,1.15582235,43260.0,43259.0,0.046]
[1642695686535,0.95872592,43260.0,43259.0,0.046]
[1642695688833,0.95872592,43260.0,43256.0,0.057808]
[1642695689232,0.0001719,43259.0,43256.0,0.057808]
[1642695689634,0.00015471,43258.0,43256.0,0.057808]
[1642695690035,0.00013752,43257.0,43256.0,0.057808]
[1642695691087,0.00013752,43257.0,43253.0,0.04018265]
[1642695691588,0.00012033,43256.0,43253.0,0.04018265]
[1642695691990,0.0007558,43259.0,43253.0,0.04018265]
[1642695691991,0.00010314,43255.0,43253.0,0.04018265]
[1642695692188,0.00010314,43255.0,43253.0,0.0980026]
[1642695692489,8.595e-05,43254.0,43253.0,0.0980026]
[1642695692689,8.595e-05,43254.0,43253.0,0.2136446]
[1642695692891,0.00075202,43256.0,43253.0,0.3292756]
[1642695693893,8.595e-05,43259.0,43255.0,0.16349815]
[1642695694131,8.595e-05,43259.0,43257.0,0.05781357]
[1642695694331,0.95853683,43260.0,43259.0,0.03650002]
[1642695694530,0.95853683,43260.0,43257.0,0.17344657]
[1642695694731,0.95853683,43260.0,43257.0,0.17866884]
[1642695694930,0.95853683,43260.0,43258.0,0.00725876]
[1642695695133,0.95853683,43260.0,43259.0,0.00634108]
[1642695695331,0.95853683,43260.0,43257.0,0.17344657]
[1642695695531,0.95863997,43260.0,43257.0,0.17344657]
[1642695698080,0.95863997,43260.0,43257.0,0.15834148]
[1642695699283,0.2169152,43258.0,43257.0,0.10052791]
[1642695699683,0.21698396,43258.0,43256.0,0.057816]
[1642695699887,0.32019396,43258.0,43253.0,0.11565]
[1642695700088,0.32019396,43258.0,43251.0,0.0009928]
[1642695700089,0.30999126,43256.0,43251.0,0.0009928]
[1642695700286,0.01579,43254.0,43251.0,0.0009928]
[1642695700487,0.47901803,43253.0,43251.0,0.0009928]
[1642695700685,0.57901803,43253.0,43251.0,0.0009928]
[1642695701184,0.57901803,43253.0,43245.0,0.53398174]
[1642695701385,0.57901803,43253.0,43250.0,0.00099249]
[1642695702030,0.38346684,43253.0,43250.0,0.00099249]
[1642695702230,0.38346684,43253.0,43249.0,0.115658]
[1642695702430,0.28346684,43253.0,43249.0,0.115658]
[1642695702630,0.38346684,43253.0,43250.0,6.876e-05]
[1642695703231,0.22553533,43252.0,43250.0,6.876e-05]
[1642695703534,0.38346684,43253.0,43250.0,6.876e-05]
[1642695703535,1.11944713,43251.0,43250.0,6.876e-05]
[1642695705686,0.21944713,43251.0,43250.0,6.876e-05]
[1642695705984,0.51944713,43251.0,43250.0,6.876e-05]
[1642695707886,0.81944713,43251.0,43250.0,6.876e-05]
[1642695709333,0.51944713,43251.0,43250.0,6.876e-05]
[1642695709540,0.94130946,43253.0,43250.0,6.876e-05]
[1642695710538,1.13113365,43253.0,43250.0,6.876e-05]
[1642695710735,1.13104861,43253.0,43250.0,6.876e-05]
[1642695711133,1.2,43252.0,43245.0,0.10387151]
[1642695711438,1.2,43252.0,43246.0,6.876e-05]
[1642695711634,1.2,43252.0,43248.0,0.00739309]
[1642695711836,1.2,43252.0,43249.0,0.00697389]
[1642695712135,1.2,43252.0,43249.0,0.115658]
[1642695712801,1.2,43252.0,43249.0,0.12323351]
[1642695712990,1.2,43252.0,43249.0,0.115658]
[1642695713185,1.2,43252.0,43249.0,0.12267804]
[1642695713386,0.2833818,43253.0,43250.0,0.00668782]
[1642695713585,0.2833818,43253.0,43250.0,0.00678125]
[1642695713785,0.2833818,43253.0,43249.0,0.12085679]
[1642695713991,0.01579,43252.0,43249.0,0.12085679]
[1642695714390,0.57363262,43252.0,43250.0,0.00659912]
[1642695714688,0.20021987,43250.0,43249.0,0.115658]
[1642695715488,0.55784262,43251.0,43249.0,0.115658]
[1642695716937,0.57454754,43252.0,43249.0,0.115658]
[1642695717537,0.55875754,43252.0,43249.0,0.115658]
[1642695717737,0.00091492,43252.0,43249.0,0.115658]
[1642695717938,0.84122442,43253.0,43249.0,0.115658]
[1642695718139,0.84187249,43253.0,43249.0,0.115658]
[1642695719043,0.2833818,43253.0,43249.0,0.115658]
[1642695719440,0.8418725,43253.0,43249.0,0.115658]
[1642695719640,0.28402988,43253.0,43249.0,0.115658]
[1642695719841,0.28402988,43253.0,43249.0,0.231303]
[1642695720289,0.84122442,43253.0,43249.0,0.115658]
[1642695720782,0.8418725,43253.0,43249.0,0.173483]
[1642695720983,0.28402988,43253.0,43249.0,0.173483]
[1642695721888,0.28410519,43253.0,43249.0,0.173483]
[1642695722285,0.28410519,43253.0,43249.0,0.115658]
[1642695722486,0.84194781,43253.0,43249.0,0.115658]
[1642695722684,0.84122442,43253.0,43249.0,0.115658]
[1642695722886,0.84194781,43253.0,43249.0,0.115658]
[1642695723286,0.84194781,43253.0,43248.0,0.28565965]
[1642695723487,0.55784262,43252.0,43248.0,0.28565965]
[1642695723885,0.55784262,43252.0,43249.0,0.115658]
[1642695724142,0.83944595,43251.0,43248.0,0.28565965]
[1642695724739,0.83944595,43251.0,43249.0,0.13292874]
[1642695724941,0.83944595,43251.0,43250.0,0.00772478]
[1642695725141,0.83944595,43251.0,43250.0,0.00770584]
[1642695725341,0.83944595,43251.0,43248.0,0.28565965]
[1642695725744,0.84940762,43251.0,43248.0,0.28565965]
[1642695726345,0.56780429,43250.0,43248.0,0.28565965]
[1642695726560,0.56780429,43249.0,43248.0,0.28565965]
[1642695726749,0.66243834,43249.0,43247.0,0.00110845]
[1642695726945,2.90541212,43248.0,43247.0,0.00110845]
[1642695727144,2.70723196,43248.0,43247.0,0.00110845]
[1642695727344,2.88874615,43248.0,43247.0,0.00110845]
[1642695727542,2.88874615,43248.0,43246.0,6.876e-05]
[1642695727782,2.24162196,43247.0,43246.0,6.876e-05]
[1642695727988,2.66507896,43247.0,43245.0,0.00110846]
[1642695728188,0.01579,43242.0,43241.0,0.00015471]
[1642695728387,0.01579,43242.0,43234.0,0.42]
[1642695728388,0.00015,43241.0,43234.0,0.42]
[1642695728588,0.56745936,43235.0,43224.0,0.0999]
[1642695728887,0.56605824,43233.0,43224.0,0.0999]
[1642695729084,0.046,43232.0,43224.0,0.0999]
[1642695729288,0.24496713,43228.0,43224.0,0.0999]
[1642695729686,0.26075713,43228.0,43224.0,0.0999]
[1642695730387,0.26075713,43228.0,43223.0,0.42]
[1642695730585,0.046,43232.0,43223.0,0.42]
[1642695730784,0.046,43232.0,43224.0,0.00029223]
[1642695731184,0.046,43232.0,43226.0,0.057863]
[1642695731185,0.23799768,43231.0,43226.0,0.057863]
[1642695731636,0.23799768,43231.0,43227.0,0.00024066]
[1642695731637,0.26140978,43229.0,43227.0,0.00024066]
[1642695731842,0.01570252,43228.0,43227.0,0.00024066]
[1642695732439,0.046,43232.0,43227.0,0.00024066]
[1642695733037,0.01570252,43237.0,43227.0,0.00024066]
[1642695733240,0.00015,43241.0,43227.0,0.00024066]
[1642695733437,0.00015,43241.0,43229.0,0.057849]
[1642695733639,0.28637252,43234.0,43229.0,0.057849]
[1642695733839,0.28637252,43234.0,43230.0,0.00018909]
[1642695735036,0.28637252,43234.0,43230.0,0.00137825]
[1642695735286,0.40445467,43241.0,43233.0,0.09237348]
[1642695735490,0.01570252,43239.0,43234.0,0.14230556]
[1642695735787,0.01570252,43239.0,43235.0,0.04467648]
[1642695735988,0.07216964,43234.0,43229.0,0.16050416]
[1642695736189,0.07216964,43234.0,43232.0,0.05]
[1642695736388,0.39463342,43234.0,43230.0,8.595e-05]
[1642695736588,0.39463342,43234.0,43232.0,0.05]
[1642695736788,0.39463342,43234.0,43233.0,0.10403906]
[1642695736990,0.39463342,43234.0,43233.0,0.09230788]
[1642695737188,0.39463342,43234.0,43232.0,0.05]
[1642695737389,0.39463342,43234.0,43233.0,0.0983555]
[1642695738490,0.07216964,43234.0,43233.0,0.0983555]
[1642695738690,0.07216964,43234.0,43232.0,0.05]
[1642695739137,0.07216964,43234.0,43231.0,0.00108632]
[1642695739542,0.02708733,43234.0,43230.0,0.00650857]
[1642695739738,0.02708733,43234.0,43231.0,0.00111645]
[1642695739939,0.02708733,43234.0,43231.0,0.00118521]
[1642695740738,0.02708733,43234.0,43231.0,6.876e-05]
[1642695741541,0.02708733,43234.0,43231.0,0.00741704]
[1642695741741,0.02708733,43234.0,43232.0,0.00675314]
[1642695741942,0.58183824,43243.0,43233.0,0.00701222]
[1642695742149,0.1172074,43249.0,43233.0,0.00701222]
[1642695742150,0.00073028,43249.0,43235.0,1.2]
[1642695742344,0.00073028,43249.0,43244.0,0.00122781]
[1642695742541,0.00073028,43249.0,43248.0,0.00129568]
[1642695742794,0.00073028,43249.0,43248.0,0.04729568]
[1642695742991,0.00097094,43249.0,43248.0,0.04729568]
[1642695743194,0.29571027,43249.0,43248.0,0.046]
[1642695744089,0.29071027,43249.0,43248.0,0.046]
[1642695746193,0.10338783,43244.0,43243.0,0.00110777]
[1642695746639,0.10338783,43244.0,43242.0,0.00122454]
[1642695746841,0.10338783,43244.0,43243.0,0.046]
[1642695748244,0.10338783,43244.0,43243.0,0.041]
[1642695749045,0.10338783,43244.0,43243.0,0.091]
[1642695750791,0.10338783,43244.0,43242.0,0.10386022]
[1642695750792,0.81419876,43244.0,43242.0,0.10386022]
[1642695750995,0.93888367,43243.0,43242.0,0.10386022]
[1642695751192,1.03888367,43243.0,43241.0,0.00110949]
[1642695751389,0.69526088,43243.0,43242.0,0.00012033]
[1642695751591,1.27310125,43243.0,43242.0,0.00012033]
[1642695751791,1.85583294,43243.0,43242.0,0.00012033]
[1642695751989,1.85583294,43243.0,43241.0,0.00013752]
[1642695752190,1.58484401,43242.0,43241.0,0.00013752]
[1642695752395,2.5292527,43242.0,43241.0,0.00013752]
[1642695752589,2.63041609,43242.0,43241.0,0.00013752]
[1642695753092,2.06230101,43242.0,43241.0,0.00013752]
[1642695753290,2.08964101,43242.0,43241.0,0.00013752]
[1642695754143,2.75109605,43242.0,43241.0,0.00013752]
[1642695754542,1.54373448,43242.0,43241.0,0.00013752]
[1642695754739,1.98493178,43242.0,43241.0,0.00013752]
[1642695754943,1.41639448,43242.0,43241.0,0.00013752]
[1642695755140,0.26105427,43243.0,43241.0,0.00013752]
[1642695755341,0.10338783,43244.0,43241.0,0.00013752]
[1642695755541,0.10338783,43244.0,43241.0,0.10470945]
[1642695755940,0.10338783,43244.0,43242.0,0.05]
[1642695756340,0.10338783,43244.0,43243.0,0.00010314]
[1642695756540,0.10338783,43244.0,43243.0,0.05010314]
[1642695757039,0.10338783,43244.0,43243.0,0.00010314]
[1642695757239,0.45338783,43244.0,43243.0,0.00010314]
[1642695757641,1.277457,43243.0,43242.0,0.04990491]
[1642695757891,1.277457,43243.0,43232.0,0.4376]
[1642695757892,1.277457,43243.0,43241.0,0.10387864]
[1642695758091,1.377457,43243.0,43241.0,0.10387864]
[1642695758695,0.477457,43243.0,43241.0,0.10276901]
[1642695758893,0.19849576,43242.0,43240.0,0.00110965]
[1642695759792,0.01578,43242.0,43240.0,0.00110965]
[1642695759997,0.01578,43242.0,43237.0,0.057846]
[1642695760193,0.01578,43242.0,43239.0,0.00110967]
[1642695761196,0.5843173,43242.0,43238.0,8.595e-05]
[1642695761395,0.5843173,43242.0,43238.0,0.00119564]
[1642695761650,0.11578,43242.0,43238.0,0.00110969]
[1642695761851,0.11578,43242.0,43239.0,6.876e-05]
[1642695762252,0.01578,43241.0,43239.0,6.876e-05]
[1642695762852,0.01578,43241.0,43238.0,0.0011097]
[1642695763054,0.01578,43241.0,43239.0,6.876e-05]
[1642695764955,0.01546964,43241.0,43239.0,6.876e-05]
[1642695766389,0.01546964,43241.0,43238.0,0.0011097]
[1642695766588,0.01546964,43241.0,43239.0,6.876e-05]
[1642695767188,0.58527846,43241.0,43239.0,6.876e-05]
[1642695767490,0.58527846,43241.0,43239.0,0.03556102]
[1642695767790,0.29382702,43240.0,43238.0,0.00104278]
[1642695768386,0.29382702,43240.0,43235.0,0.057849]
[1642695769042,0.16846217,43238.0,43234.0,0.05]
[1642695769240,0.16846217,43238.0,43234.0,0.14216768]
[1642695769441,0.72002828,43240.0,43235.0,6.876e-05]
[1642695769842,1.2898371,43240.0,43235.0,6.876e-05]
[1642695770042,1.2898371,43240.0,43236.0,0.09165905]
[1642695770244,1.2898371,43240.0,43236.0,0.05]
[1642695770445,1.2898371,43240.0,43237.0,0.10070086]
[1642695770642,1.2898371,43240.0,43238.0,0.05]
[1642695770844,1.2898371,43240.0,43238.0,0.15542754]
[1642695771041,1.2898371,43240.0,43238.0,0.10542754]
[1642695771244,1.2898371,43240.0,43237.0,0.09853141]
[1642695771245,0.377457,43239.0,43237.0,0.09853141]
[1642695771446,1.52810726,43240.0,43237.0,0.09853141]
[1642695771643,1.52810726,43240.0,43238.0,0.05]
[1642695771845,0.377457,43239.0,43238.0,0.05]
[1642695772044,0.477457,43239.0,43238.0,0.05]
[1642695772644,0.477457,43239.0,43236.0,0.00118923]
[1642695772894,0.11578,43239.0,43236.0,0.00118923]
[1642695773295,0.01578,43239.0,43235.0,6.876e-05]
[1642695773496,0.01578,43239.0,43236.0,0.1041648]
[1642695773694,0.01578,43239.0,43236.0,0.1541648]
[1642695774499,0.75974509,43251.0,43240.0,0.09367951]
[1642695774698,1.06068766,43255.0,43240.0,0.09367951]
[1642695774699,0.00092539,43249.0,43242.0,0.10483995]